bitfinex-derivatives/quotes_BNBF0:USTF0_20250401
["timestamp","ask_amount","ask_price","bid_price","bid_amount"]
[1743538638033,0.28612186,608.83,607.85,0.32902854]
[1743538640434,1.38012186,608.83,607.85,0.32902854]
[1743538640835,1.094,608.83,607.85,0.32902854]
[1743538641228,0.28611715,608.82,607.85,0.32902854]
[1743538643735,1.094,608.83,607.85,0.32902854]
[1743538644137,0.28610539,608.82,607.85,0.32902854]
[1743538646641,1.094,608.83,607.85,0.32902854]
[1743538647141,0.28609363,608.81,607.85,0.32902854]
[1743538648042,1.205,608.8,607.85,0.32902854]
[1743538648242,2.127,608.8,607.85,0.32902854]
[1743538649944,0.28609481,608.79,607.85,0.32902854]
[1743538650239,0.30207554,608.78,607.85,0.32902854]
[1743538651044,0.28609481,608.79,607.85,0.32902854]
[1743538652946,2.127,608.8,607.85,0.32902854]
[1743538653145,0.28607364,608.78,607.85,0.32902854]
[1743538657144,1.28,608.77,607.85,0.32902854]
[1743538659048,0.28609951,608.76,607.85,0.32902854]
[1743538660055,0.986,608.75,607.85,0.32902854]
[1743538662046,0.28610069,608.74,607.85,0.32902854]
[1743538664947,0.986,608.75,607.85,0.32902854]
[1743538665154,0.28609833,608.73,607.85,0.32902854]
[1743538670851,0.986,608.75,607.85,0.32902854]
[1743538671052,0.28608187,608.72,607.85,0.32902854]
[1743538671657,0.86,608.71,607.85,0.32902854]
[1743538674252,0.28610657,608.7,607.85,0.32902854]
[1743538676801,0.86,608.71,607.85,0.32902854]
[1743538677000,0.28610186,608.69,607.85,0.32902854]
[1743538678498,1.28610186,608.69,607.85,0.32902854]
[1743538679801,1.0,608.69,607.85,0.32902854]
[1743538679998,0.28609128,608.68,607.85,0.32902854]
[1743538682303,1.499,608.67,607.85,0.32902854]
[1743538683101,0.28608893,608.66,607.85,0.32902854]
[1743538687003,1.499,608.67,607.85,0.32902854]
[1743538689091,0.28607011,608.66,607.85,0.32902854]
[1743538689493,0.28607011,608.66,607.99,1.23309435]
[1743538691087,0.28607011,608.66,607.93,1.23309435]
[1743538691491,1.294,608.65,607.93,1.23309435]
[1743538692977,1.294,608.65,607.94,0.32897983]
[1743538693669,1.294,608.65,607.94,1.56207418]
[1743538696376,1.224,608.64,607.94,1.56207418]
[1743538697678,1.224,608.64,607.94,0.32897983]
[1743538700788,0.885,608.63,607.94,0.32897983]
[1743538703789,0.935,608.62,607.94,0.32897983]
[1743538713101,0.935,608.62,607.99,1.23309435]
[1743538715197,0.935,608.62,607.94,0.32897983]
[1743538715198,0.85,608.61,608.01,1.23309435]
[1743538716901,0.85,608.61,607.94,0.32897983]
[1743538719303,1.13608305,608.61,607.94,0.32897983]
[1743538721798,0.85,608.61,607.94,0.32897983]
[1743538722202,1.13608422,608.61,607.94,0.32897983]
[1743538724204,1.06,608.6,607.94,0.32897983]
[1743538725202,1.372,608.59,607.94,0.32897983]
[1743538730407,1.111,608.58,607.94,0.32897983]
[1743538731107,0.28613597,608.57,607.94,0.32897983]
[1743538733805,1.111,608.58,607.94,0.32897983]
[1743538734209,0.28612303,608.57,607.94,0.32897983]
[1743538736812,1.111,608.58,607.94,0.32897983]
[1743538737008,0.883,608.57,607.94,0.32897983]
[1743538737208,1.16911009,608.57,607.94,0.32897983]
[1743538742917,0.883,608.57,607.94,0.32897983]
[1743538743117,1.16911009,608.57,607.94,0.32897983]
[1743538745715,0.883,608.57,607.94,0.32897983]
[1743538746323,1.16911245,608.57,607.94,0.32897983]
[1743538748421,2.29611245,608.57,607.94,0.32897983]
[1743538748816,2.01,608.57,607.94,0.32897983]
[1743538749017,2.29610892,608.57,607.94,0.32897983]
[1743538753823,3.59210892,608.57,607.94,0.32897983]
[1743538754928,3.306,608.57,607.94,0.32897983]
[1743538755226,0.28613362,608.56,607.94,0.32897983]
[1743538757828,3.306,608.57,607.94,0.32897983]
[1743538758028,0.28615715,608.55,607.94,0.32897983]
[1743538760923,3.306,608.57,607.94,0.32897983]
[1743538761129,0.28616303,608.54,607.94,0.32897983]
[1743538763529,1.023,608.53,607.94,0.32897983]
[1743538764429,0.28616538,608.52,607.94,0.32897983]
[1743538766827,1.023,608.53,607.94,0.32897983]
[1743538767224,0.28616421,608.51,607.94,0.32897983]
[1743538769932,1.023,608.53,607.94,0.32897983]
[1743538770330,0.28617597,608.5,607.94,0.32897983]
[1743538772735,1.023,608.53,607.94,0.32897983]
[1743538773133,0.28617597,608.49,607.94,0.32897983]
[1743538774335,1.2,608.48,607.94,0.32897983]
[1743538776234,0.28618068,608.47,607.94,0.32897983]
[1743538778739,1.2,608.48,607.94,0.32897983]
[1743538779342,1.24116891,608.47,607.94,0.32897983]
[1743538780240,1.228,608.46,607.94,0.32897983]
[1743538782345,0.28618421,608.45,607.94,0.32897983]
[1743538784049,0.28618421,608.45,607.46,1.23309435]
[1743538784249,0.28618421,608.45,607.47,0.32923436]
[1743538784749,1.228,608.46,607.47,0.32923436]
[1743538785051,0.28619245,608.44,607.47,0.32923436]
[1743538785349,0.28619245,608.44,607.54,1.23309435]
[1743538785551,0.28619245,608.44,607.55,0.32919101]
[1743538787747,1.228,608.46,607.55,0.32919101]
[1743538788149,0.28620186,608.43,607.55,0.32919101]
[1743538788745,1.25,608.42,607.55,0.32919101]
[1743538791150,0.28621246,608.41,607.55,0.32919101]
[1743538796350,1.125,608.4,607.55,0.32919101]
[1743538797151,0.28620304,608.39,607.55,0.32919101]
[1743538799753,1.125,608.4,607.55,0.32919101]
[1743538800260,0.28624424,608.38,607.55,0.32919101]
[1743538801459,1.125,608.4,607.55,0.32919101]
[1743538801664,0.30221641,608.39,607.55,0.32919101]
[1743538801863,0.28629251,608.37,607.55,0.32919101]
[1743538802864,1.125,608.4,607.55,0.32919101]
[1743538803064,0.30221611,608.39,607.55,0.32919101]
[1743538803261,0.28629251,608.36,607.55,0.32919101]
[1743538803563,0.28629251,608.36,607.61,1.23309435]
[1743538805768,1.125,608.4,607.55,0.32919101]
[1743538806360,0.28622776,608.39,607.55,0.32919101]
[1743538807562,0.30224236,608.38,607.55,0.32919101]
[1743538808665,0.28622776,608.39,607.55,0.32919101]
[1743538808861,0.3022424,608.38,607.55,0.32919101]
[1743538809168,1.125,608.4,607.55,0.32919101]
[1743538809370,0.28626661,608.37,607.55,0.32919101]
[1743538809570,0.28626661,608.37,607.56,1.23309435]
[1743538810275,1.354,608.36,607.56,1.23309435]
[1743538810771,0.30225952,608.35,607.56,1.23309435]
[1743538811368,0.30225952,608.35,607.55,0.32919101]
[1743538811768,1.164,608.34,607.55,0.32919101]
[1743538811971,0.30225952,608.33,607.55,0.32919101]
[1743538816666,1.45026778,608.34,607.55,0.32919101]
[1743538816872,0.30228319,608.33,607.55,0.32919101]
[1743538817073,1.53828319,608.33,607.55,0.32919101]
[1743538817268,0.30228319,608.32,607.55,0.32919101]
[1743538818271,0.28626307,608.31,607.55,0.32919101]
[1743538818473,0.30228319,608.3,607.55,0.32919101]
[1743538818773,1.231,608.3,607.55,0.32919101]
[1743538821170,0.28627249,608.29,607.55,0.32919101]
[1743538823777,1.231,608.3,607.55,0.32919101]
[1743538824171,0.28625601,608.28,607.55,0.32919101]
[1743538825674,1.328,608.27,607.55,0.32919101]
[1743538828582,0.825,608.26,607.55,0.32919101]
[1743538833686,0.825,608.26,607.55,1.56228536]
[1743538835386,0.825,608.26,607.56,1.23309435]
[1743538838785,0.825,608.26,607.57,1.23309435]
[1743538840590,0.825,608.26,607.55,1.56228536]
[1743538842493,0.825,608.26,607.56,1.23309435]
[1743538842789,1.328,608.27,607.56,1.23309435]
[1743538844498,1.328,608.27,607.55,0.32919101]
[1743538844698,1.117,608.26,607.55,0.32919101]
[1743538846298,1.318,608.25,607.55,0.32919101]
[1743538852705,0.908,608.24,607.55,0.32919101]
[1743538856313,0.908,608.24,607.55,1.56228536]
[1743538858508,0.908,608.24,607.55,0.32919101]
[1743538866015,1.148,608.23,607.55,0.32919101]
[1743538868717,1.148,608.23,607.58,1.23309435]
[1743538868914,1.148,608.23,607.59,0.32916934]
[1743538869516,1.256,608.22,607.59,0.32916934]
[1743538873217,1.205,608.21,607.59,0.32916934]
[1743538874820,0.884,608.2,607.59,0.32916934]
[1743538886229,1.814,608.2,607.59,0.32916934]
[1743538905238,2.774,608.2,607.59,0.32916934]
[1743538921954,2.774,608.2,607.62,1.23309435]
[1743538922154,2.774,608.2,607.63,0.32914767]
[1743538929056,3.889,608.2,607.63,0.32914767]
[1743538942573,0.2862513,608.19,607.63,0.32914767]
[1743538943974,1.115,608.2,607.63,0.32914767]
[1743538944170,0.2862513,608.19,607.63,0.32914767]
[1743538945477,1.5922513,608.19,607.63,0.32914767]
[1743538946775,3.0822513,608.19,607.63,0.32914767]
[1743538947077,4.1092513,608.19,607.63,0.32914767]
[1743538949875,3.823,608.19,607.63,0.32914767]
[1743538950379,4.10930429,608.19,607.63,0.32914767]
[1743538952878,3.823,608.19,607.63,0.32914767]
[1743538953476,4.10934198,608.19,607.63,0.32914767]
[1743538955977,3.823,608.19,607.63,0.32914767]
[1743538956485,0.28635494,608.18,607.63,0.32914767]
[1743538958986,3.823,608.19,607.63,0.32914767]
[1743538959181,0.28636554,608.17,607.63,0.32914767]
[1743538964985,3.823,608.19,607.63,0.32914767]
[1743538965387,0.28634905,608.18,607.63,0.32914767]
[1743538967895,3.823,608.19,607.63,0.32914767]
[1743538968293,0.28634316,608.17,607.63,0.32914767]
[1743538970096,0.28634316,608.17,607.02,1.23309435]
[1743538970794,0.28634316,608.17,606.72,2.71944164]
[1743538970795,0.30236813,608.16,607.17,1.23309435]
[1743538970998,0.28634316,608.17,607.18,0.32939161]
[1743538971200,0.30236882,608.16,607.18,0.32939161]
[1743538971699,0.28634316,608.17,607.18,0.32939161]
[1743538972293,0.929,608.16,607.18,0.32939161]
[1743538975600,0.28636201,608.15,607.18,0.32939161]
[1743538977003,0.927,608.14,607.18,0.32939161]
[1743538977197,2.07735847,608.14,607.18,0.32939161]
[1743538977602,1.274,608.13,607.18,0.32939161]
[1743538980404,0.28634669,608.12,607.18,0.32939161]
[1743538982906,1.274,608.13,607.18,0.32939161]
[1743538983403,0.28634669,608.12,607.18,0.32939161]
[1743538988908,1.274,608.13,607.18,0.32939161]
[1743538989505,0.2863573,608.12,607.18,0.32939161]
[1743538989703,0.2863573,608.12,607.24,1.23309435]
[1743538989904,1.28,608.11,607.24,1.23309435]
[1743538992109,1.28,608.11,607.25,1.23309435]
[1743538992807,1.396,608.1,607.25,1.23309435]
[1743538993612,1.396,608.1,607.26,0.32934821]
[1743538995309,0.28633609,608.09,607.26,0.32934821]
[1743538996607,0.28633609,608.09,607.27,1.23309435]
[1743538997913,1.396,608.1,607.27,1.23309435]
[1743538998309,0.28634905,608.08,607.27,1.23309435]
[1743538998914,0.28634905,608.08,607.26,0.32934821]
[1743539000516,1.25234905,608.08,607.26,0.32934821]
[1743539000918,0.966,608.08,607.26,0.32934821]
[1743539001313,0.28638086,608.07,607.26,0.32934821]
[1743539004018,2.383,608.08,607.26,0.32934821]
[1743539004219,0.28638086,608.06,607.26,0.32934821]
[1743539011230,1.017,608.05,607.26,0.32934821]
[1743539013224,0.28637733,608.04,607.26,0.32934821]
[1743539016036,0.93,608.03,607.26,0.32934821]
[1743539016336,1.21637615,608.03,607.26,0.32934821]
[1743539017834,1.362,608.02,607.26,0.32934821]
[1743539019237,0.28638204,608.01,607.26,0.32934821]
[1743539022034,1.362,608.02,607.26,0.32934821]
[1743539022339,0.28638322,608.0,607.26,0.32934821]
[1743539024937,1.362,608.02,607.26,0.32934821]
[1743539027941,1.572,608.01,607.26,0.32934821]
[1743539040854,1.133,608.0,607.26,0.32934821]
[1743539043456,1.133,608.0,607.28,1.23309435]
[1743539043655,1.133,608.0,607.29,0.32933195]
[1743539044859,1.177,607.99,607.29,0.32933195]
[1743539045655,1.177,607.99,607.29,1.5624263]
[1743539045858,0.932,607.98,607.29,1.5624263]
[1743539048061,0.932,607.98,607.38,1.23309435]
[1743539048363,0.932,607.98,607.39,0.32927772]
[1743539056761,0.932,607.98,607.41,1.23309435]
[1743539057162,1.37,607.97,607.41,1.23309435]
[1743539057361,1.37,607.97,607.42,0.32926146]
[1743539057965,1.089,607.96,607.42,0.32926146]
[1743539059861,0.913,607.95,607.42,0.32926146]
[1743539063665,0.913,607.95,607.42,1.56235581]
[1743539065472,0.913,607.95,607.43,1.23309435]
[1743539065673,0.913,607.95,607.44,0.32925062]
[1743539068076,0.913,607.95,607.49,1.23309435]
[1743539069878,0.913,607.95,607.48,1.23309435]
[1743539071884,0.913,607.95,607.44,0.32925062]
[1743539071885,0.913,607.95,607.49,1.23309435]
[1743539073685,0.913,607.95,607.44,0.32925062]
[1743539080387,2.0,607.95,607.44,0.32925062]
[1743539083193,2.0,607.95,607.52,1.23309435]
[1743539085394,2.0,607.95,607.53,1.23309435]
[1743539088001,2.0,607.95,607.54,1.23309435]
[1743539090002,1.087,607.95,607.54,1.23309435]
[1743539094204,1.087,607.95,607.44,0.32925062]
[1743539096402,1.087,607.95,607.45,1.23309435]
[1743539096602,1.087,607.95,607.45,1.56233955]
[1743539098704,1.087,607.95,607.45,0.3292452]
[1743539101317,1.087,607.95,607.51,1.23309435]
[1743539103408,1.087,607.95,607.45,0.3292452]
[1743539103409,1.087,607.95,607.59,1.23309435]
[1743539107607,1.087,607.95,607.62,1.23309435]
[1743539108512,2.643,608.02,607.62,1.23309435]
[1743539109010,2.643,608.02,607.6,1.23309435]
[1743539110511,2.643,608.02,607.62,1.23309435]
[1743539113108,2.643,608.02,607.55,1.23309435]
[1743539115111,1.273,608.02,607.55,1.23309435]
[1743539118711,1.273,608.02,607.45,1.56233955]
[1743539120416,1.273,608.02,607.45,0.3292452]
[1743539134626,0.909,608.01,607.45,0.3292452]
[1743539136831,0.909,608.01,607.6,1.23309435]
[1743539137029,0.909,608.01,607.61,0.3291585]
[1743539146642,2.06,608.1,607.61,0.3291585]
[1743539147848,3.441,608.1,607.61,0.3291585]
[1743539148952,4.389,608.1,607.61,0.3291585]
[1743539169565,4.389,608.1,607.69,1.23309435]
[1743539169765,1.381,608.1,607.7,0.32910975]
[1743539172669,1.381,608.1,607.76,1.23309435]
[1743539172967,1.381,608.1,607.77,0.32907185]
[1743539174568,1.381,608.1,607.89,1.23309435]
[1743539174769,1.381,608.1,607.89,1.56210124]
[1743539176069,1.381,608.1,607.89,0.32900689]
[1743539190879,1.381,608.1,607.9,1.23309435]
[1743539191383,2.532,608.38,607.9,1.23309435]
[1743539192881,2.532,608.38,608.11,1.23309435]
[1743539196283,2.532,608.38,607.89,0.32900689]
[1743539197283,2.532,608.38,607.75,1.23309435]
[1743539197484,0.28618656,608.37,607.75,1.23309435]
[1743539198384,0.28618656,608.37,607.57,1.23309435]
[1743539199183,2.532,608.38,607.57,1.23309435]
[1743539199379,0.28620775,608.36,607.57,1.23309435]
[1743539200485,0.28620775,608.36,607.45,1.23309435]
[1743539200680,0.28620775,608.36,607.46,0.32923978]
[1743539204585,1.308,608.35,607.46,0.32923978]
[1743539205285,0.28625366,608.34,607.46,0.32923978]
[1743539207986,1.308,608.35,607.46,0.32923978]
[1743539208388,0.28624188,608.33,607.46,0.32923978]
[1743539214097,1.308,608.35,607.46,0.32923978]
[1743539214298,0.28629251,608.32,607.46,0.32923978]
[1743539217001,1.308,608.35,607.46,0.32923978]
[1743539217303,0.28629251,608.31,607.46,0.32923978]
[1743539217995,1.044,608.3,607.46,0.32923978]
[1743539220503,0.28632196,608.29,607.46,0.32923978]
[1743539221097,1.185,608.28,607.46,0.32923978]
[1743539226410,0.28632196,608.27,607.46,0.32923978]
[1743539229106,1.185,608.28,607.46,0.32923978]
[1743539229510,0.28629133,608.26,607.46,0.32923978]
[1743539232111,1.185,608.28,607.46,0.32923978]
[1743539232707,0.28630429,608.25,607.46,0.32923978]
[1743539233417,0.30232745,608.24,607.46,0.32923978]
[1743539234517,0.30234571,608.23,607.46,0.32923978]
[1743539234718,0.30234571,608.24,607.46,0.32923978]
[1743539234918,0.30234571,608.23,607.46,0.32923978]
[1743539235118,0.30234571,608.24,607.46,0.32923978]
[1743539235313,0.58868534,608.23,607.46,0.32923978]
[1743539235518,0.30234571,608.22,607.46,0.32923978]
[1743539235719,0.28633963,608.23,607.46,0.32923978]
[1743539236519,1.088,608.22,607.46,0.32923978]
[1743539239619,0.891,608.21,607.46,0.32923978]
[1743539241527,0.28637026,608.2,607.46,0.32923978]
[1743539241920,0.891,608.21,607.46,0.32923978]
[1743539249625,1.276,608.2,607.46,0.32923978]
[1743539259531,2.639,608.2,607.46,0.32923978]
[1743539261138,3.866,608.2,607.46,0.32923978]
[1743539268440,5.12,608.2,607.46,0.32923978]
[1743539275053,5.12,608.2,607.55,1.23309435]
[1743539275250,5.12,608.2,607.56,0.32918559]
[1743539276955,5.12,608.2,607.65,1.23309435]
[1743539279451,5.12,608.2,607.56,0.32918559]
[1743539279452,5.12,608.2,607.7,1.23309435]
[1743539282353,5.12,608.2,607.75,1.23309435]
[1743539282656,2.481,608.2,607.75,1.23309435]
[1743539282959,1.254,608.2,607.75,1.23309435]
[1743539284454,1.254,608.2,607.77,1.23309435]
[1743539285659,1.254,608.2,607.78,1.23309435]
[1743539287262,1.254,608.2,607.56,0.32918559]
[1743539287263,1.254,608.2,607.81,1.23309435]
[1743539289559,1.254,608.2,607.82,1.23309435]
[1743539291261,1.254,608.2,607.56,1.80889881]
[1743539291262,1.254,608.2,607.8,1.23309435]
[1743539293164,1.254,608.2,607.81,1.23309435]
[1743539296071,1.254,608.2,607.72,1.23309435]
[1743539296072,1.254,608.2,607.82,1.23309435]
[1743539298672,1.254,608.2,607.81,1.23309435]
[1743539302273,1.254,608.2,607.7,1.23309435]
[1743539306282,1.254,608.2,607.56,0.32918559]
[1743539306283,1.254,608.2,607.68,1.23309435]
[1743539308181,1.254,608.2,607.67,1.23309435]
[1743539310281,1.254,608.2,607.69,1.23309435]
[1743539312383,1.254,608.2,607.77,1.23309435]
[1743539314380,1.254,608.2,607.78,1.23309435]
[1743539318681,1.254,608.2,607.83,1.23309435]
[1743539321285,1.254,608.2,607.89,1.23309435]
[1743539321483,1.172,608.26,607.89,1.23309435]
[1743539323189,1.172,608.26,607.87,1.23309435]
[1743539324784,1.172,608.26,607.86,1.23309435]
[1743539327094,1.172,608.26,607.78,1.23309435]
[1743539330692,1.172,608.26,607.73,1.23309435]
[1743539332794,1.05,608.32,607.59,1.23309435]
[1743539332997,1.05,608.32,607.6,0.32916392]
[1743539335099,2.061,608.32,607.6,0.32916392]
[1743539341309,2.061,608.32,607.73,1.23309435]
[1743539341711,3.225,608.32,607.73,1.23309435]
[1743539343407,3.225,608.32,607.63,1.23309435]
[1743539343408,3.225,608.32,607.65,1.23309435]
[1743539343608,4.831,608.32,607.65,1.23309435]
[1743539345406,4.831,608.32,607.66,1.23309435]
[1743539347113,4.831,608.32,607.82,1.23309435]
[1743539349114,4.831,608.32,607.8,1.23309435]
[1743539351918,4.831,608.32,607.76,1.23309435]
[1743539354521,4.831,608.32,607.73,1.23309435]
[1743539357224,4.831,608.32,607.62,1.23309435]
[1743539358624,4.831,608.32,607.6,1.23309435]
[1743539360521,4.831,608.32,607.5,1.23309435]
[1743539360522,4.831,608.32,607.61,1.23309435]
[1743539365320,4.831,608.32,607.18,2.51756763]
[1743539365321,4.831,608.32,607.57,1.23309435]
[1743539366921,4.831,608.32,607.44,1.23309435]
[1743539366922,4.831,608.32,607.61,1.23309435]
[1743539370529,4.831,608.32,607.65,1.23309435]
[1743539373831,4.831,608.32,607.69,1.23309435]
[1743539375934,4.831,608.32,607.78,1.23309435]
[1743539378331,4.831,608.32,607.54,1.23309435]
[1743539380328,4.831,608.32,607.53,1.23309435]
[1743539382430,4.831,608.32,607.64,1.23309435]
[1743539382633,4.831,608.32,607.65,0.32913683]
[1743539384536,4.831,608.32,607.73,1.23309435]
[1743539384837,4.831,608.32,607.73,1.56218786]
[1743539387138,4.831,608.32,607.79,1.23309435]
[1743539389043,4.831,608.32,607.78,1.23309435]
[1743539392036,4.831,608.32,607.73,1.56218786]
[1743539393739,4.831,608.32,607.73,0.32909351]
[1743539405750,4.831,608.32,607.9,1.23309435]
[1743539406049,0.28616774,608.52,607.9,1.23309435]
[1743539406245,2.50824296,609.46,607.9,1.23309435]
[1743539406549,0.32817012,609.44,607.9,1.23309435]
[1743539406749,0.28600428,608.51,607.9,1.23309435]
[1743539406949,0.32817012,609.44,607.9,1.23309435]
[1743539407146,0.28600781,608.51,607.9,1.23309435]
[1743539407546,0.32817012,609.44,607.9,1.23309435]
[1743539407746,0.32817012,609.44,607.93,1.23309435]
[1743539407747,0.28600663,608.51,607.93,1.23309435]
[1743539408144,2.83641308,609.44,607.93,1.23309435]
[1743539408347,0.28602191,608.5,607.93,1.23309435]
[1743539408749,0.988,608.49,607.93,1.23309435]
[1743539408948,1.27403132,608.49,607.93,1.23309435]
[1743539409754,1.113,608.48,607.93,1.23309435]
[1743539409955,2.486,608.48,607.93,1.23309435]
[1743539411953,2.486,608.48,607.73,0.32909351]
[1743539412754,0.28618656,608.47,607.73,0.32909351]
[1743539415257,2.486,608.48,607.73,0.32909351]
[1743539415458,0.28618656,608.46,607.73,0.32909351]
[1743539418158,2.486,608.48,607.73,0.32909351]
[1743539418864,0.28622305,608.47,607.73,0.32909351]
[1743539420963,0.30224205,608.46,607.73,0.32909351]
[1743539421166,0.30224205,608.46,607.32,1.23309435]
[1743539421363,0.28627485,608.45,607.32,1.23309435]
[1743539421560,0.28627485,608.45,607.33,0.32931025]
[1743539424267,2.486,608.48,607.33,0.32931025]
[1743539424568,0.28632549,608.44,607.33,0.32931025]
[1743539425367,0.30225937,608.43,607.33,0.32931025]
[1743539426068,0.28632549,608.44,607.33,0.32931025]
[1743539431372,0.28632549,608.44,607.37,1.23309435]
[1743539431871,0.28632549,608.44,607.38,0.32928315]
[1743539433276,2.486,608.48,607.38,0.32928315]
[1743539433472,0.28623247,608.43,607.38,0.32928315]
[1743539436279,1.573,608.42,607.38,0.32928315]
[1743539436472,1.85926778,608.42,607.38,0.32928315]
[1743539439277,1.573,608.42,607.38,0.32928315]
[1743539439580,0.28627485,608.41,607.38,0.32928315]
[1743539442280,1.573,608.42,607.38,0.32928315]
[1743539442476,0.2862984,608.4,607.38,0.32928315]
[1743539443575,1.347,608.39,607.38,0.32928315]
[1743539445481,0.28628074,608.38,607.38,0.32928315]
[1743539448183,1.347,608.39,607.38,0.32928315]
[1743539448579,0.28627132,608.38,607.38,0.32928315]
[1743539451184,1.347,608.39,607.38,0.32928315]
[1743539451484,0.28626661,608.37,607.38,0.32928315]
[1743539454190,1.347,608.39,607.38,0.32928315]
[1743539454690,0.28625719,608.36,607.38,0.32928315]
[1743539457186,1.347,608.39,607.38,0.32928315]
[1743539457587,0.28625601,608.35,607.38,0.32928315]
[1743539458591,0.996,608.34,607.38,0.32928315]
[1743539460492,0.28625954,608.33,607.38,0.32928315]
[1743539460796,1.28025954,608.33,607.38,0.32928315]
[1743539463394,0.994,608.33,607.38,0.32928315]
[1743539463587,1.28025719,608.33,607.38,0.32928315]
[1743539464495,0.994,608.33,607.38,0.32928315]
[1743539465390,0.994,608.33,607.46,1.23309435]
[1743539465591,0.994,608.33,607.47,0.32923436]
[1743539467093,0.994,608.33,607.49,1.23309435]
[1743539467289,0.994,608.33,607.5,0.3292181]
[1743539469395,2.018,608.33,607.5,0.3292181]
[1743539469997,3.661,608.33,607.5,0.3292181]
[1743539472696,3.661,608.33,607.51,1.23309435]
[1743539473200,3.661,608.33,607.52,0.32920726]
[1743539475395,3.661,608.33,607.52,1.56230161]
[1743539477701,3.661,608.33,607.52,0.32920726]
[1743539479606,3.661,608.33,607.56,1.23309435]
[1743539479905,3.661,608.33,607.57,0.32918017]
[1743539482806,3.661,608.33,607.6,1.23309435]
[1743539483007,3.661,608.33,607.61,0.3291585]
[1743539484708,4.782,608.33,607.61,0.3291585]
[1743539489710,4.782,608.33,607.61,1.56225285]
[1743539491712,4.782,608.33,607.61,0.3291585]
[1743539494009,4.782,608.33,607.64,1.23309435]
[1743539494613,4.782,608.33,607.65,0.32913683]
[1743539507624,4.782,608.33,607.75,1.23309435]
[1743539509118,4.782,608.33,607.74,1.23309435]
[1743539513530,4.782,608.33,607.65,0.32913683]
[1743539519633,4.782,608.33,607.68,1.23309435]
[1743539523433,4.782,608.33,607.65,0.32913683]
[1743539529547,0.28622658,608.32,607.65,0.32913683]
[1743539532443,2.50824296,609.46,607.65,0.32913683]
[1743539532649,0.878,608.32,607.65,0.32913683]
[1743539532942,1.1640901,608.32,607.65,0.32913683]
[1743539533146,0.878,608.32,607.65,0.32913683]
[1743539533347,1.969,608.32,607.65,0.32913683]
[1743539533548,2.96,608.32,607.65,0.32913683]
[1743539534146,3.24622187,608.32,607.65,0.32913683]
[1743539535243,2.96,608.32,607.65,0.32913683]
[1743539535747,3.24623364,608.32,607.65,0.32913683]
[1743539538249,2.96,608.32,607.65,0.32913683]
[1743539538748,3.24623482,608.32,607.65,0.32913683]
[1743539541348,2.96,608.32,607.65,0.32913683]
[1743539541547,3.24623835,608.32,607.65,0.32913683]
[1743539544361,2.96,608.32,607.65,0.32913683]
[1743539544756,3.24624424,608.32,607.65,0.32913683]
[1743539549163,4.42624424,608.32,607.65,0.32913683]
[1743539550267,4.14,608.32,607.65,0.32913683]
[1743539550663,4.42624071,608.32,607.65,0.32913683]
[1743539553168,4.14,608.32,607.65,0.32913683]
[1743539567180,4.14,608.32,607.73,1.23309435]
[1743539567379,4.14,608.32,607.73,1.56218786]
[1743539568283,4.14,608.32,607.74,0.32908809]
[1743539588100,4.14,608.32,607.79,1.23309435]
[1743539588306,4.14,608.32,607.8,0.32905561]
[1743539590908,4.14,608.32,607.87,1.23309435]
[1743539591105,4.14,608.32,607.88,0.3290123]
[1743539591306,0.28606423,608.91,607.88,0.3290123]
[1743539592202,0.32817012,609.44,607.88,0.3290123]
[1743539592406,0.30195552,609.43,607.88,0.3290123]
[1743539592608,0.32818089,609.42,607.88,0.3290123]
[1743539592804,0.30195552,609.41,607.88,0.3290123]
[1743539593004,0.32819166,609.4,607.88,0.3290123]
[1743539593210,0.30195552,609.39,607.88,0.3290123]
[1743539593507,0.28582106,609.43,607.88,0.3290123]
[1743539593508,0.63015938,609.38,607.88,0.3290123]
[1743539593809,0.30195695,609.37,607.88,0.3290123]
[1743539594606,1.217,609.36,607.88,0.3290123]
[1743539594801,3.191,609.36,607.88,0.3290123]
[1743539595004,0.30195695,609.35,607.88,0.3290123]
[1743539595609,0.28593613,609.34,607.88,0.3290123]